bitfinex-derivatives/quotes_SOLF0:USTF0_20251216
["timestamp","ask_amount","ask_price","bid_price","bid_amount"]
[1765892015097,109.4448,127.95,127.85,112.5932]
[1765892015291,109.4211,127.98,127.88,3.07]
[1765892015500,109.4101,127.99,127.9,3.07]
[1765892015688,17.50577218,128.02,127.92,109.4649]
[1765892015889,17.50577218,128.07,127.98,109.4109]
[1765892016084,109.343,128.07,127.98,3.07]
[1765892016291,109.4015,128.0,127.9,112.5512]
[1765892016498,109.3675,128.04,127.92,112.5302]
[1765892016695,109.3675,128.04,127.93,112.5262]
[1765892016984,109.3855,128.02,127.93,3.07]
[1765892017189,0.05047318,127.99,127.93,3.07]
[1765892018300,0.05047318,127.99,127.93,68.53]
[1765892018599,0.05047318,127.99,127.91,65.46]
[1765892018795,109.3635,128.05,127.96,3.07]
[1765892018796,109.3636,128.05,127.96,3.07]
[1765892018992,109.351,128.06,127.97,3.07]
[1765892019292,109.351,128.06,127.97,68.55]
[1765892019488,109.359,128.05,127.98,65.48]
[1765892019792,109.3847,128.02,128.0,0.04981322]
[1765892019991,109.4283,127.97,127.9,65.48]
[1765892020191,0.05461871,127.95,127.92,0.04981322]
[1765892020603,0.00461871,127.95,127.92,112.58471322]
[1765892020793,109.3708,128.04,127.94,3.07]
[1765892021097,109.3952,128.01,127.94,3.07]
[1765892021292,109.4123,127.99,127.91,65.5]
[1765892021487,109.4121,127.99,127.91,65.5]
[1765892021693,109.3849,128.02,127.91,65.5]
[1765892021694,0.04957561,127.96,127.94,3.12162334]
[1765892021888,0.05068142,127.96,127.94,0.0571325]
[1765892022790,109.453,127.94,127.86,3.07]
[1765892022986,109.453,127.94,127.84,3.07]
[1765892022987,109.4633,127.93,127.84,3.07]
[1765892023197,109.4614,127.93,127.85,3.07]
[1765892023501,109.436,127.96,127.85,112.5939]
[1765892023690,109.4195,127.98,127.89,3.07]
[1765892023916,0.05784909,127.95,127.92,3.11729943]
[1765892024392,0.05784909,127.95,127.93,68.59]
[1765892024696,109.3769,128.03,127.94,3.07]
[1765892024894,109.3723,128.04,127.94,3.07]
[1765892025097,109.3457,128.07,127.97,3.07]
[1765892025295,109.3702,128.04,127.97,68.61]
[1765892025502,109.3509,128.06,127.97,68.61]
[1765892025698,0.05021078,128.03,128.0,0.05753648]
[1765892025906,218.7734,128.02,128.0,0.05753648]
[1765892026100,109.42751078,128.03,128.0,0.05753648]
[1765892026301,0.05021078,128.03,128.0,0.05753648]
[1765892027903,109.42781078,128.03,128.0,0.05753648]
[1765892028109,0.05021078,128.03,128.0,0.05753648]
[1765892028905,0.05021078,128.03,127.93,109.456]
[1765892028906,109.404,128.0,127.89,109.4863]
[1765892029108,109.447,127.95,127.87,3.07]
[1765892029494,17.50577218,127.99,127.85,109.5243]
[1765892029495,126.89497218,128.02,127.92,3.07]
[1765892029709,109.3892,128.02,127.92,3.07]
[1765892029903,0.0498959,127.98,127.96,0.04761204]
[1765892030504,0.0498959,127.98,127.96,3.11761204]
[1765892031204,0.0498959,127.98,127.96,0.04761204]
[1765892031409,0.0498959,127.98,127.96,3.11761204]
[1765892031896,126.84287218,128.08,127.96,3.11761204]
[1765892032107,109.368,128.04,127.97,68.63]
[1765892032303,109.3769,128.03,127.97,68.63]
[1765892032513,109.3593,128.05,127.97,68.63]
[1765892032911,0.05852776,128.02,128.0,0.05056788]
[1765892034517,0.05852776,128.02,128.0,3.12056788]
[1765892034808,0.05852776,128.02,128.0,0.05056788]
[1765892036700,0.05852776,128.02,128.01,3.07]
[1765892036899,109.3596,128.05,128.0,0.05056788]
[1765892037111,109.3596,128.05,127.98,65.56]
[1765892037313,109.3388,128.08,127.99,3.07]
[1765892037519,109.3162,128.1,128.01,3.07]
[1765892037903,0.05102624,128.07,128.04,0.05447117]
[1765892038313,0.05102624,128.07,128.04,3.12447117]
[1765892039609,0.00102624,128.07,128.04,112.48527117]
[1765892039819,116.3073,128.14,128.05,3.07]
[1765892040114,116.3073,128.14,128.03,109.3696]
[1765892040115,109.2907,128.13,128.08,1.87458402]
[1765892040316,174.8416,128.19,128.1,3.07]
[1765892040508,126.73927218,128.2,128.1,3.07]
[1765892040509,109.2258,128.21,128.13,1.87458402]
[1765892040704,109.2258,128.21,128.11,3.07]
[1765892040705,109.2568,128.17,128.16,0.05050699]
[1765892040906,109.2568,128.17,128.1,65.56]
[1765892041106,7.0238,128.17,128.12,1.87477824]
[1765892041312,109.2258,128.21,128.13,1.87477824]
[1765892041517,109.2347,128.2,128.16,1.87477824]
[1765892041708,109.2372,128.19,128.13,3.07]
[1765892041913,0.05181878,128.17,128.15,1.93560536]
[1765892042113,0.05181878,128.17,128.15,0.05861969]
[1765892042520,109.30911878,128.17,128.15,0.05861969]
[1765892042719,109.308,128.11,128.05,3.07]
[1765892042920,109.308,128.11,128.07,1.87979532]
[1765892043217,116.3529,128.09,128.01,3.07]
[1765892043521,109.2946,128.13,128.03,3.27]
[1765892043714,109.2946,128.13,128.07,0.05829568]
[1765892043715,0.05323899,128.09,128.07,0.05829568]
[1765892044116,0.05323899,128.09,128.07,1.94063435]
[1765892044519,218.69843899,128.09,127.99,96.99]
[1765892044718,109.3409,128.07,128.03,1.88493758]
[1765892044911,218.6452,128.09,128.05,1.88493758]
[1765892044912,109.3224,128.09,128.05,1.88493758]
[1765892045116,109.3417,128.07,128.04,1.88493758]
[1765892045311,109.3586,128.05,127.99,3.27]
[1765892045522,109.3586,128.05,128.02,2.645e-05]
[1765892045711,109.42755375,128.03,127.97,65.56]
[1765892045912,109.3857,128.02,127.96,65.56]
[1765892046117,0.05061352,128.0,127.99,0.03963958]
[1765892046814,0.05061352,128.0,127.99,3.30963958]
[1765892047014,0.05061352,128.0,127.99,0.03963958]
[1765892047519,0.05061352,128.0,127.86,7.0296901]
[1765892047520,109.4451,127.95,127.87,65.27]
[1765892047724,109.4811,127.91,127.83,3.27]
[1765892047954,109.4961,127.89,127.79,115.64709096]
[1765892048227,109.557,127.82,127.71,109.6401]
[1765892048519,109.5473,127.83,127.73,112.8973]
[1765892048924,109.514,127.87,127.79,1.89806497]
[1765892049220,109.5473,127.83,127.73,109.6258]
[1765892049417,109.5472,127.83,127.77,1.89964298]
[1765892049615,0.05428747,127.79,127.78,3.27]
[1765892049810,109.4964,127.89,127.79,3.27]
[1765892050024,109.4964,127.89,127.78,67.14]
[1765892050025,109.4964,127.89,127.82,5.16736423]
[1765892050318,109.5223,127.86,127.83,6.423e-05]
[1765892050518,109.5132,127.87,127.82,1.8979818]
[1765892050821,109.5059,127.88,127.83,0.05]
[1765892050822,0.05653226,127.86,127.83,0.05]
[1765892051118,0.05812232,127.86,127.83,0.05]
[1765892051321,0.05812232,127.86,127.84,1.89862874]
[1765892051526,0.05812232,127.86,127.83,0.05]
[1765892051726,109.58042232,127.86,127.83,0.05]
[1765892051928,0.05812232,127.86,127.84,1.8986129]
[1765892052626,109.4801,127.91,127.85,3.27]
[1765892052925,175.0649,127.93,127.87,1.9010558]
[1765892053121,109.4469,127.95,127.89,1.9010558]
[1765892053313,109.4395,127.96,127.9,1.9010558]
[1765892053519,109.4112,127.99,127.92,1.9010558]
[1765892053719,109.4112,127.99,127.93,1.9010558]
[1765892053932,218.9166959,127.97,127.95,0.05712886]
[1765892054233,109.4652,127.93,127.86,3.27]
[1765892054523,109.4741,127.92,127.89,1.90953146]
[1765892054724,109.4741,127.92,127.82,109.5457]
[1765892054725,109.4846,127.9,127.81,68.87]
[1765892054919,109.4978,127.89,127.81,68.87]
[1765892055325,0.05072047,127.86,127.84,0.05099346]
[1765892055719,0.05072047,127.86,127.85,1.91333645]
[1765892055924,0.05072047,127.86,127.84,0.05099346]
[1765892056230,109.57232047,127.86,127.84,0.05099346]
[1765892056532,0.05072047,127.86,127.84,0.05099346]
[1765892057120,0.05072047,127.86,127.84,3.32099346]
[1765892057431,0.05072047,127.86,127.84,0.05099346]
[1765892058225,109.4384,127.96,127.86,3.27]
[1765892058534,109.4307,127.97,127.89,5.18622898]
[1765892058719,109.4541,127.94,127.91,1.91622898]
[1765892058919,109.4541,127.94,127.88,65.62]
[1765892059121,0.05810219,127.92,127.9,1.97131651]
[1765892059330,0.05810219,127.92,127.91,1.91542842]
[1765892059632,109.4789,127.91,127.84,65.62]
[1765892059818,109.4789,127.91,127.87,1.91629386]
[1765892060023,109.4614,127.93,127.83,178.4292]
[1765892060224,109.4709,127.92,127.87,1.91592788]
[1765892060427,109.4804,127.91,127.83,68.89]
[1765892060633,109.56247117,127.88,127.86,1.9619693]
[1765892060821,109.5141,127.87,127.8,65.62]
[1765892061025,109.5141,127.87,127.79,3.27]
[1765892061026,109.5213,127.86,127.79,3.27]
[1765892061227,109.5043,127.88,127.79,3.27]
[1765892061431,109.502,127.88,127.79,3.27]
[1765892061631,109.4719,127.92,127.83,3.27]
[1765892061842,109.4635,127.93,127.85,5.1856734]
[1765892062139,109.5067,127.88,127.76,109.597]
[1765892062347,0.0562524,127.83,127.76,3.27]
[1765892062839,109.5772,127.8,127.72,3.27]
[1765892063038,109.6253,127.74,127.63,109.7086]
[1765892063230,109.6759,127.68,127.59,3.27]
[1765892063450,109.6854,127.67,127.57,109.7645]
[1765892063741,109.7198,127.63,127.53,109.7982]
[1765892064037,115.61818288,127.62,127.52,109.8032]
[1765892064227,0.05336606,127.63,127.58,1.91391661]
[1765892064430,109.7382,127.61,127.59,1.91391661]
[1765892064635,5.89068288,127.6,127.52,3.27]
[1765892064827,115.64538288,127.59,127.51,65.64]
[1765892065026,0.0584933,127.56,127.5,1.3640907]
[1765892065226,0.0584933,127.56,127.51,3.27]
[1765892065639,6.17349904,127.55,127.49,29.64038656]
[1765892065845,109.7389,127.61,127.51,109.8119]
[1765892066030,109.7292,127.62,127.51,62.78995643]
[1765892066232,109.7221,127.63,127.53,109.7971]
[1765892066534,175.4098,127.62,127.54,9.79380358]
[1765892066729,0.05749335,127.59,127.57,0.05948665]
[1765892066940,109.7298,127.62,127.52,109.8048]
[1765892067240,109.677,127.68,127.58,109.7566]
[1765892067452,109.6521,127.71,127.58,109.7566]
[1765892067453,109.6521,127.71,127.62,1.89311866]
[1765892067651,109.6359,127.73,127.65,1.89311866]
[1765892067947,109.6502,127.71,127.67,5.16311866]
[1765892068134,0.05879957,127.7,127.68,0.05733755]
[1765892068335,219.38199957,127.7,127.68,0.05733755]
[1765892068546,109.7275,127.62,127.58,3.27]
[1765892068741,109.7275,127.62,127.52,109.8078]
[1765892068742,109.7545,127.59,127.52,3.27]
[1765892069056,109.7545,127.59,127.47,2.84801402]
[1765892069057,109.8223,127.51,127.47,2.84801402]
[1765892069233,109.8223,127.51,127.43,68.97]
[1765892069234,109.8508,127.48,127.38,3.27]
[1765892069549,0.00119296,127.44,127.43,3.27]
[1765892069732,109.8185,127.52,127.43,3.27]
[1765892070060,109.7842,127.56,127.5,5.15578397]
[1765892070249,109.7953,127.54,127.44,113.1468]
[1765892070548,109.7953,127.54,127.44,3.27]
[1765892070549,109.8053,127.53,127.44,3.27]
[1765892070750,0.05501891,127.5,127.47,3.327712]
[1765892070947,219.68,127.49,127.47,0.05087643]
[1765892071146,219.68,127.49,127.37,109.9324]
[1765892071147,109.8573,127.47,127.37,3.27]
[1765892071351,109.8754,127.45,127.37,3.27]
[1765892071547,109.8404,127.49,127.38,113.1986]
[1765892071746,109.8404,127.49,127.35,109.9528]
[1765892071747,109.8944,127.43,127.35,4.63575028]
[1765892071948,109.8944,127.43,127.3,7.0713]
[1765892071949,109.9209,127.4,127.3,3.27]
[1765892072259,109.9096,127.41,127.3,3.27]
[1765892072260,0.05186855,127.36,127.34,0.05656471]
[1765892072448,0.05897239,127.36,127.34,0.05656471]
[1765892072645,0.05897239,127.36,127.35,1.88253136]
[1765892072847,109.9696,127.34,127.24,3.27]
[1765892073055,109.9753,127.33,127.24,3.27]
[1765892073250,109.9612,127.35,127.25,3.27]
[1765892073556,109.9009,127.42,127.32,3.1]
[1765892073768,109.8748,127.45,127.37,1.86699506]
[1765892074053,109.8615,127.47,127.4,1.86640599]
[1765892074451,109.8521,127.48,127.41,1.86640599]
[1765892074652,109.8583,127.47,127.37,3.1]
[1765892074854,109.8254,127.51,127.41,111.76399873]
[1765892075152,109.806,127.53,127.46,3.1]
[1765892075354,7.0574,127.56,127.45,1.92095662]
[1765892075355,116.8356,127.56,127.45,109.8675]
[1765892075662,109.7881,127.55,127.48,1.85795536]
[1765892075953,109.8056,127.53,127.42,109.8925]
[1765892076157,109.7214,127.63,127.52,109.808]
[1765892076354,109.7214,127.63,127.55,1.85797256]
[1765892076355,109.7372,127.61,127.55,1.85797256]
[1765892076544,109.7276,127.62,127.56,0.05881026]
[1765892076545,0.04975233,127.59,127.56,0.05881026]
[1765892076860,109.779,127.56,127.47,65.8]
[1765892077060,109.8308,127.5,127.41,3.1]
[1765892077356,109.8306,127.5,127.4,109.9111]
[1765892077556,109.8252,127.51,127.41,109.9031]
[1765892077756,109.7544,127.59,127.48,112.9442]
[1765892077958,109.7544,127.59,127.52,0.0598494]
[1765892078156,0.0602772,127.55,127.52,0.0598494]
[1765892078459,109.8489772,127.55,127.52,0.0598494]
[1765892078849,109.8478772,127.55,127.52,0.0598494]
[1765892079056,109.8115,127.52,127.44,65.82]
[1765892079252,116.8709,127.52,127.47,5.896e-05]
[1765892079450,109.8033,127.53,127.43,3.1]
[1765892079655,109.7734,127.57,127.47,112.9508]
[1765892079861,109.7665,127.58,127.48,112.9409]
[1765892080057,0.05640307,127.54,127.48,112.9409]
[1765892080256,0.05640307,127.54,127.52,1.85146212]
[1765892080564,0.05640307,127.54,127.46,3.1]
[1765892080750,0.05543299,127.51,127.48,3.1]
[1765892081055,109.7406,127.61,127.49,112.9335]
[1765892081254,109.7131,127.64,127.54,109.7903]
[1765892081452,109.6978,127.66,127.58,1.85105772]
[1765892081653,109.6862,127.67,127.59,1.85105772]
[1765892081848,109.7105,127.64,127.56,65.82]
[1765892082156,0.05610732,127.61,127.59,1.9007687]
[1765892082356,0.05610732,127.61,127.59,0.04995082]
[1765892082550,109.7579,127.59,127.49,3.1]
[1765892082757,109.7908,127.55,127.44,112.9767]
[1765892082948,109.7805,127.56,127.45,112.967]
[1765892083150,109.7622,127.58,127.48,3.1]
[1765892083344,140.01884022,127.59,127.49,109.834]
[1765892083557,109.7584,127.59,127.54,1.85368249]
[1765892083948,109.7794,127.56,127.45,109.867]
[1765892084148,0.05581287,127.52,127.46,65.82]
[1765892084372,0.05581287,127.52,127.46,68.92]
[1765892084857,0.05581287,127.52,127.48,3.1]
[1765892085056,116.7723,127.63,127.53,3.1]
[1765892085260,109.6851,127.67,127.57,114.71847073]
[1765892085455,109.6933,127.66,127.6,1.85487073]
[1765892085767,116.7432,127.66,127.57,3.1]
[1765892085957,0.05299288,127.63,127.61,1.85516756]
[1765892086261,0.05299288,127.63,127.6,0.05698648]
[1765892087354,109.77269288,127.63,127.6,0.05698648]
[1765892087556,109.77269288,127.63,127.52,109.8057]
[1765892087557,219.4614,127.62,127.52,3.1]
[1765892087764,116.7631,127.64,127.56,1.86481486]
[1765892087955,109.6672,127.69,127.58,114.72151486]
[1765892088154,109.7202,127.63,127.54,3.1]
[1765892088459,0.06022276,127.6,127.54,3.1]
[1765892088960,0.06022276,127.6,127.55,3.1]
[1765892089158,0.06022276,127.6,127.56,3.1]
[1765892089359,0.00022276,127.6,127.57,3.1]
[1765892089552,109.6635,127.7,127.59,112.8445]
[1765892089749,109.6635,127.7,127.57,109.7653]
[1765892089750,109.6672,127.69,127.63,1.87085861]
[1765892089949,109.6672,127.69,127.56,3.1]
[1765892089950,109.7018,127.65,127.56,3.1]
[1765892090154,109.7018,127.65,127.61,1.87103924]
[1765892090356,109.7202,127.63,127.56,3.1]
[1765892090554,0.0513997,127.61,127.59,1.87537455]
[1765892090753,0.0513997,127.61,127.6,1.87537455]
[1765892090954,109.7531,127.59,127.58,0.00235411]
[1765892091159,109.8303,127.5,127.44,3.1]
[1765892091371,109.8033,127.53,127.44,3.1]
[1765892091572,109.8231,127.51,127.42,65.82]
[1765892091775,109.8406,127.49,127.4,3.1]
[1765892092060,109.831,127.5,127.3,3.1]
[1765892092061,109.9265,127.39,127.3,3.1]
[1765892092264,109.9098,127.41,127.3,113.0972]
[1765892092454,109.8439,127.49,127.38,3.1]
[1765892092772,0.05944416,127.45,127.38,3.1]
[1765892093060,109.9692,127.34,127.25,4.4668768]
[1765892093268,109.9692,127.34,127.25,3.1]
[1765892093475,109.9432,127.37,127.27,3.1]
[1765892093765,109.9432,127.37,127.26,110.0322]
[1765892093766,109.9429,127.37,127.29,3.1]
[1765892094065,109.9557,127.36,127.33,1.512e-05]
[1765892094255,109.9538,127.36,127.29,3.1]
[1765892094462,109.934,127.38,127.24,117.1191]
[1765892094463,109.9773,127.33,127.24,3.1]
[1765892094657,109.9388,127.38,127.27,113.18014409]
[1765892094658,0.05917585,127.3,127.27,113.18014409]
[1765892094861,109.8864,127.44,127.33,109.9715]
[1765892095060,505.2542,127.48,127.41,1.87821767]
[1765892095061,109.8529,127.48,127.41,1.87821767]
[1765892095255,109.8858,127.44,127.4,1.767e-05]
[1765892095457,109.8771,127.45,127.4,1.767e-05]
[1765892095763,0.05602529,127.44,127.34,109.9636]
[1765892095962,0.05800177,127.4,127.38,0.05858589]
[1765892096262,0.05800177,127.4,127.39,1.87810581]
[1765892096464,0.05800177,127.4,127.39,1.87904648]
[1765892096775,0.05800177,127.4,127.35,3.1]
[1765892096962,109.891,127.43,127.35,3.1]
[1765892097270,109.8997,127.42,127.35,3.1]
[1765892097579,109.96878876,127.4,127.37,0.05850432]
[1765892097868,0.0539861,127.4,127.37,0.05079987]
[1765892098260,0.0539861,127.4,127.38,1.87991418]
[1765892098463,109.9598,127.35,127.25,3.1]
[1765892098658,109.9598,127.35,127.27,3.1]
[1765892099061,109.9706,127.34,127.27,3.1]
[1765892099257,109.9706,127.34,127.19,110.0884]
[1765892099258,110.0044,127.3,127.22,3.1]
[1765892099468,110.0044,127.3,127.26,1.88460994]
[1765892099660,110.06788362,127.29,127.26,1.88460994]
[1765892099863,110.06788362,127.29,127.18,113.1983]
[1765892100063,110.0204,127.28,127.24,1.88507328]
[1765892100280,110.0204,127.28,127.15,2.89563709]
[1765892100281,110.0725,127.22,127.15,2.89563709]
[1765892100574,110.0725,127.22,127.07,110.1918]
[1765892100575,110.1106,127.18,127.07,110.1918]
[1765892100873,110.1343,127.15,127.04,113.3213]
[1765892101070,110.1596,127.12,127.01,110.2483]
[1765892101262,110.1872,127.09,126.97,110.284]
[1765892101462,110.1872,127.09,126.94,110.3068]
[1765892101463,110.2224,127.05,126.94,110.3099]
[1765892101669,0.05815206,127.04,126.99,3.1]
[1765892101863,110.202,127.07,126.99,3.1]
[1765892102063,440.6362,127.12,126.99,3.1]
[1765892102064,0.00448361,127.03,127.02,3.1]
[1765892102264,110.1521,127.13,127.03,3.1]
[1765892102471,110.1171,127.17,127.06,3.1]
[1765892102674,110.1122,127.18,127.1,4.98007386]
[1765892102872,110.1154,127.17,127.11,1.88007386]
[1765892103176,110.0377,127.26,127.16,3.1]
[1765892103370,0.0573986,127.22,127.2,0.05959836]
[1765892104165,0.0573986,127.22,127.21,1.87878188]
[1765892104471,0.0573986,127.22,127.21,1.88154043]
[1765892104674,110.0049,127.3,127.21,4.85]
[1765892104874,109.9898,127.32,127.25,1.88101283]
[1765892105071,109.9949,127.31,127.25,1.88101283]
[1765892105273,110.0215,127.28,127.17,110.1074]
[1765892105575,0.06024833,127.24,127.23,1.88419073]
[1765892105772,109.9812,127.33,127.22,115.27797209]
[1765892105964,109.9955,127.31,127.26,1.88397829]
[1765892106174,109.9474,127.37,127.26,115.18557829]
[1765892106364,133.97170533,127.4,127.3,1.88397829]
[1765892106570,109.9115,127.41,127.33,1.88397829]
[1765892106781,109.9115,127.41,127.34,7.73715339]
[1765892106782,109.9095,127.41,127.34,7.73715339]
[1765892106985,0.0572076,127.38,127.36,0.05573242]
[1765892107280,0.0572076,127.38,127.37,7.73715339]
[1765892107776,109.8443,127.49,127.38,3.27]
[1765892107981,109.8355,127.5,127.4,5.15979288]
[1765892108277,175.7859,127.53,127.46,1.88979288]
[1765892108579,109.8147,127.52,127.47,9.62694627]
[1765892108874,0.05358514,127.51,127.48,12.95564783]
[1765892109072,109.7667,127.58,127.5,1.89046548]
[1765892109375,0.05003191,127.55,127.53,0.05469592]
[1765892109584,109.7404,127.61,127.53,0.05469592]
[1765892109585,109.7307,127.62,127.54,11.00715339]
[1765892109783,205.95564022,127.64,127.55,9.62722941]
[1765892109784,109.7152,127.64,127.55,9.62722941]
[1765892109985,109.7198,127.63,127.57,1.89007602]
[1765892110289,109.7198,127.63,127.51,109.8164]
[1765892110290,219.4914,127.6,127.58,4.32715339]
[1765892110584,109.7254,127.62,127.51,3.27]
[1765892110585,109.7304,127.62,127.51,3.27]
[1765892110885,109.7304,127.62,127.5,109.8279]
[1765892110886,109.7555,127.59,127.55,1.94943562]
[1765892111083,109.7709,127.57,127.55,0.0598427]
[1765892111381,109.81877441,127.58,127.55,0.0598427]
[1765892111680,0.05687441,127.58,127.55,0.0598427]
[1765892111880,0.05687441,127.58,127.56,5.1600066]
[1765892112177,109.7145,127.64,127.57,1.8900066]
[1765892112376,109.7023,127.65,127.56,3.27]
[1765892112377,109.6928,127.66,127.59,1.8900066]
[1765892112572,109.7186,127.63,127.56,3.27]
[1765892112774,109.6933,127.66,127.58,1.89002135]
[1765892112976,109.6933,127.66,127.6,2.135e-05]
[1765892112977,219.456,127.62,127.6,2.135e-05]
[1765892113187,109.7455,127.6,127.51,3.27]
[1765892113385,109.7628,127.58,127.48,3.27]
[1765892113684,109.7547,127.59,127.53,3.27]
[1765892113886,139.97274022,127.64,127.53,3.27]
[1765892114076,0.05196333,127.6,127.58,3.27]
[1765892114271,109.6879,127.67,127.6,3.27]
[1765892114483,109.6365,127.73,127.64,3.27]
[1765892114782,109.6194,127.75,127.67,1.88911447]
[1765892114985,109.6194,127.75,127.68,1.88911447]
[1765892115278,0.04974258,127.73,127.7,0.0598819]
[1765892115479,109.68514258,127.73,127.7,0.05156368]
[1765892115682,0.04974258,127.73,127.7,3.32156368]
[1765892115987,0.04974258,127.73,127.71,5.15586562]
[1765892116171,0.04974258,127.73,127.71,3.27]
[1765892116378,127.27311837,127.81,127.72,3.27]
[1765892116379,109.5689,127.81,127.72,3.27]
[1765892116682,109.5689,127.81,127.76,1.88355201]
[1765892116877,127.24671837,127.84,127.72,112.9061]
[1765892117184,109.5473,127.83,127.78,1.88331367]
[1765892117379,0.0532039,127.82,127.79,1.93459131]
[1765892117677,0.05276721,127.82,127.81,1.88331367]
[1765892117885,109.5597,127.82,127.79,0.05127764]
[1765892118080,109.541,127.84,127.79,0.05127764]
[1765892118385,127.21971837,127.87,127.79,0.05127764]
[1765892118572,7.038,127.91,127.79,0.05127764]
[1765892118573,127.16601837,127.93,127.81,112.829]
[1765892118772,127.16601837,127.93,127.86,0.0552986]
[1765892118773,0.05192738,127.88,127.86,0.0552986]
[1765892118977,0.055234,127.88,127.87,1.87698765]
[1765892119287,109.4367,127.96,127.88,3.27]
[1765892119471,109.4614,127.93,127.9,1.87054607]
[1765892119674,109.4614,127.93,127.8,127.26851837]
[1765892119675,109.5064,127.88,127.83,3.27]
[1765892119873,109.5064,127.88,127.8,65.82]
[1765892119874,109.5133,127.87,127.8,65.82]
[1765892120080,109.5133,127.87,127.78,69.09]
[1765892120272,0.05080075,127.84,127.81,0.05967233]
[1765892120676,0.05080075,127.84,127.82,1.86813529]
[1765892120882,0.05080075,127.84,127.83,1.86813529]
[1765892121187,0.05080075,127.84,127.81,0.05967233]
[1765892121375,0.05080075,127.84,127.82,1.86822949]
[1765892121880,109.59190075,127.84,127.82,1.86822949]
[1765892122087,219.13300075,127.84,127.81,0.05967233]
[1765892122288,0.05080075,127.84,127.81,3.32967233]
[1765892122611,219.12780075,127.84,127.82,4.408e-05]
[1765892122792,219.12780075,127.84,127.83,4.408e-05]
[1765892123088,219.095,127.83,127.81,0.05967233]
[1765892123290,109.5703,127.8,127.71,3.27]
[1765892123489,109.591,127.78,127.75,1.86206938]
[1765892123686,109.5995,127.77,127.72,3.27]
[1765892123885,109.6073,127.76,127.73,1.86248688]
[1765892124079,109.591,127.78,127.73,1.86248688]
[1765892124293,109.5575,127.82,127.76,1.86248688]
[1765892124587,109.5575,127.82,127.75,3.27]
[1765892124588,109.6077,127.76,127.7,3.27]
[1765892124794,109.5899,127.78,127.73,1.86085024]
[1765892125087,109.5599,127.82,127.75,1.86085024]
[1765892125088,109.567,127.81,127.75,1.86085024]
[1765892125385,0.05043731,127.79,127.77,3.32269111]
[1765892125590,109.5519,127.83,127.78,1.85936976]
[1765892125591,109.5652,127.81,127.78,1.85936976]
[1765892125784,109.5519,127.83,127.77,0.05269111]
[1765892126088,109.5519,127.83,127.78,1.85888697]
[1765892126089,109.5568,127.82,127.78,1.85888697]
[1765892126312,109.5519,127.83,127.78,1.85888697]
[1765892126486,116.5837,127.84,127.77,0.05269111]
[1765892126487,109.60725984,127.82,127.77,0.05269111]
[1765892126684,109.5741,127.8,127.77,0.05269111]
[1765892126979,0.05095984,127.82,127.79,3.27]
[1765892127181,0.05095984,127.82,127.8,1.85689526]
[1765892127391,0.05095984,127.82,127.8,0.05542421]
[1765892127690,0.00095984,127.82,127.81,3.27]
[1765892127986,0.00095984,127.82,127.8,0.05542421]
[1765892128198,0.00095984,127.82,127.8,3.32542421]
[1765892128798,109.4898,127.9,127.81,3.27]
[1765892128987,109.4744,127.92,127.85,1.85262284]
[1765892129293,109.4601,127.93,127.88,5.12262284]
[1765892129495,7.0363,127.94,127.9,1.85262284]
[1765892129689,109.4473,127.95,127.88,3.27]
[1765892129894,0.05040351,127.93,127.9,1.90552006]
[1765892130187,0.05040351,127.93,127.9,0.05632548]
[1765892130393,0.05040351,127.93,127.91,3.27]
[1765892130696,0.05040351,127.93,127.9,0.05632548]
[1765892130897,0.05040351,127.93,127.9,1.90270733]
[1765892131193,0.05040351,127.93,127.9,0.05632548]
[1765892131382,0.05040351,127.93,127.9,1.90146179]
[1765892131584,109.51260351,127.93,127.9,0.05632548]
[1765892131786,0.05040351,127.93,127.9,1.90008688]
[1765892131993,0.05040351,127.93,127.9,3.32632548]